[Event "*** Titled Tuesday Blitz"]
[Site "Chess.com"]
[Date "2020.03.03"]
[Round "6"]
[White "Tjktiger"]
[Black "Firouzja2003"]
[Result "1-0"]
[WhiteElo "2802"]
[BlackElo "3060"]
[TimeControl "180+1"]
[EndTime "10:04:20 PST"]
[Termination "Tjktiger won on time"]

1. d4 {[%clk 0:03:00.9]} 1... Nf6 {[%clk 0:02:56.2]} 2. c4 {[%clk 0:03:01]} 2...
e6 {[%clk 0:02:54.4]} 3. g3 {[%clk 0:03:01.1]} 3... d5 {[%clk 0:02:54.3]} 4. Bg2
{[%clk 0:03:01.2]} 4... Be7 {[%clk 0:02:50.4]} 5. Nf3 {[%clk 0:03:01.1]} 5...
O-O {[%clk 0:02:51.3]} 6. O-O {[%clk 0:03:01.7]} 6... dxc4 {[%clk 0:02:52.2]} 7.
Qc2 {[%clk 0:02:59.9]} 7... a6 {[%clk 0:02:52.2]} 8. a4 {[%clk 0:02:57.5]} 8...
Bd7 {[%clk 0:02:51.3]} 9. Qxc4 {[%clk 0:02:54.2]} 9... Bc6 {[%clk 0:02:50.2]}
10. Bf4 {[%clk 0:02:34.7]} 10... a5 {[%clk 0:02:42.5]} 11. Nc3 {[%clk
0:02:32.6]} 11... Na6 {[%clk 0:02:32.6]} 12. Rfd1 {[%clk 0:02:29.3]} 12... Nb4
{[%clk 0:02:21.3]} 13. Rac1 {[%clk 0:02:29.3]} 13... Nfd5 {[%clk 0:02:13.2]} 14.
Ne5 {[%clk 0:01:27.7]} 14... Nxf4 {[%clk 0:02:10.8]} 15. gxf4 {[%clk 0:01:22.4]}
15... Bxg2 {[%clk 0:02:11.7]} 16. Kxg2 {[%clk 0:01:23.3]} 16... Bd6 {[%clk
0:02:09.3]} 17. e3 {[%clk 0:01:18]} 17... Kh8 {[%clk 0:02:07.4]} 18. Ne4 {[%clk
0:01:17.1]} 18... Qe8 {[%clk 0:02:07.1]} 19. Qb5 {[%clk 0:01:08.4]} 19... Qxb5
{[%clk 0:01:52.6]} 20. axb5 {[%clk 0:01:08]} 20... Nd5 {[%clk 0:01:53.5]} 21.
Nc5 {[%clk 0:00:59.3]} 21... Bxc5 {[%clk 0:01:46.3]} 22. Rxc5 {[%clk 0:00:53.2]}
22... Rad8 {[%clk 0:01:37.2]} 23. Rdc1 {[%clk 0:00:51.9]} 23... f6 {[%clk
0:01:34.3]} 24. Nd3 {[%clk 0:00:51.7]} 24... Rf7 {[%clk 0:01:33]} 25. e4 {[%clk
0:00:44]} 25... Nb6 {[%clk 0:01:23.7]} 26. Rxc7 {[%clk 0:00:43.8]} 26... Rfd7
{[%clk 0:01:19.1]} 27. Rxd7 {[%clk 0:00:41.1]} 27... Rxd7 {[%clk 0:01:20]} 28.
Nc5 {[%clk 0:00:39.7]} 28... Rxd4 {[%clk 0:01:20.2]} 29. Nxe6 {[%clk 0:00:30.7]}
29... Rxe4 {[%clk 0:01:15.2]} 30. Rd1 {[%clk 0:00:27.9]} 30... Kg8 {[%clk
0:00:59.5]} 31. Nc5 {[%clk 0:00:24.7]} 31... Rxf4 {[%clk 0:00:54.3]} 32. Rd6
{[%clk 0:00:20.3]} 32... Nc4 {[%clk 0:00:50.6]} 33. Rd8+ {[%clk 0:00:20.3]}
33... Kf7 {[%clk 0:00:50.4]} 34. Rd7+ {[%clk 0:00:20.8]} 34... Kg6 {[%clk
0:00:50.4]} 35. Ne6 {[%clk 0:00:17.3]} 35... Rg4+ {[%clk 0:00:49.1]} 36. Kh3
{[%clk 0:00:15.4]} 36... Re4 {[%clk 0:00:46.3]} 37. Nf8+ {[%clk 0:00:13.7]}
37... Kh6 {[%clk 0:00:44.2]} 38. Rxb7 {[%clk 0:00:14]} 38... Ne5 {[%clk
0:00:39.4]} 39. b6 {[%clk 0:00:12.3]} 39... Rb4 {[%clk 0:00:38.6]} 40. Ne6
{[%clk 0:00:10.1]} 40... Rxb2 {[%clk 0:00:34.2]} 41. Nxg7 {[%clk 0:00:09.7]}
41... Rxf2 {[%clk 0:00:32.9]} 42. Ne8 {[%clk 0:00:08.9]} 42... f5 {[%clk
0:00:19.4]} 43. Re7 {[%clk 0:00:07.3]} 43... Ng6 {[%clk 0:00:15.5]} 44. b7
{[%clk 0:00:06.5]} 44... Rb2 {[%clk 0:00:14.1]} 45. Rf7 {[%clk 0:00:05.3]} 45...
Kg5 {[%clk 0:00:08.6]} 46. Nd6 {[%clk 0:00:05.7]} 46... Nf4+ {[%clk 0:00:08]}
47. Kg3 {[%clk 0:00:06.1]} 47... Rb3+ {[%clk 0:00:07.9]} 48. Kf2 {[%clk
0:00:06.4]} 48... Nd3+ {[%clk 0:00:06.3]} 49. Kf1 {[%clk 0:00:05.7]} 49... Kg4
{[%clk 0:00:03.1]} 50. Rf8 {[%clk 0:00:04.2]} 50... Ne5 {[%clk 0:00:02]} 51.
b8=Q {[%clk 0:00:03.8]} 51... Rxb8 {[%clk 0:00:02.9]} 52. Rxb8 {[%clk
0:00:03.4]} 52... Nf3 {[%clk 0:00:03.8]} 53. Rg8+ {[%clk 0:00:03.4]} 53... Kf4
{[%clk 0:00:04.7]} 54. Kf2 {[%clk 0:00:03.1]} 54... Ne5 {[%clk 0:00:04.3]} 55.
Rf8 {[%clk 0:00:03.1]} 55... Ng4+ {[%clk 0:00:04.9]} 56. Kg1 {[%clk 0:00:03]}
56... Ne3 {[%clk 0:00:04.3]} 57. Ra8 {[%clk 0:00:03]} 57... Ke5 {[%clk
0:00:04.3]} 58. Nf7+ {[%clk 0:00:03.2]} 58... Ke4 {[%clk 0:00:04.6]} 59. Nd8
{[%clk 0:00:04.1]} 1-0

[Event "*** Titled Tuesday Blitz"]
[Site "Chess.com"]
[Date "2020.03.03"]
[Round "6"]
[White "AlexTruskavetsky"]
[Black "GameOverBro"]
[Result "0-1"]
[WhiteElo "2415"]
[BlackElo "2573"]
[TimeControl "180+1"]
[EndTime "10:04:34 PST"]
[Termination "GameOverBro won on time"]

1. c4 {[%clk 0:02:59]} 1... d6 {[%clk 0:02:56.9]} 2. g3 {[%clk 0:02:59.8]} 2...
g6 {[%clk 0:02:56.1]} 3. Bg2 {[%clk 0:02:56.5]} 3... Bg7 {[%clk 0:02:56.5]} 4.
d4 {[%clk 0:02:53.2]} 4... e5 {[%clk 0:02:52.1]} 5. dxe5 {[%clk 0:02:52]} 5...
Bxe5 {[%clk 0:02:50.8]} 6. Nf3 {[%clk 0:02:50.2]} 6... Bg7 {[%clk 0:02:50.2]} 7.
O-O {[%clk 0:02:48.7]} 7... Nc6 {[%clk 0:02:49.7]} 8. Nc3 {[%clk 0:02:46.1]}
8... Nf6 {[%clk 0:02:46.7]} 9. Bg5 {[%clk 0:02:45.3]} 9... h6 {[%clk 0:02:46.7]}
10. Be3 {[%clk 0:02:42.4]} 10... O-O {[%clk 0:02:41.8]} 11. Qd2 {[%clk
0:02:39.8]} 11... Ng4 {[%clk 0:02:39.9]} 12. Bf4 {[%clk 0:02:38.7]} 12... g5
{[%clk 0:02:40.2]} 13. Be3 {[%clk 0:02:33.4]} 13... Be6 {[%clk 0:02:38.7]} 14.
b3 {[%clk 0:02:26.2]} 14... Qf6 {[%clk 0:02:30.6]} 15. Rac1 {[%clk 0:02:24.4]}
15... Nxe3 {[%clk 0:02:19.9]} 16. Qxe3 {[%clk 0:02:24]} 16... Rfe8 {[%clk
0:02:20.2]} 17. Qd2 {[%clk 0:02:18.7]} 17... Rac8 {[%clk 0:01:54.9]} 18. Nd5
{[%clk 0:02:13.9]} 18... Bxd5 {[%clk 0:01:54.6]} 19. cxd5 {[%clk 0:02:10.7]}
19... Nd4 {[%clk 0:01:47.9]} 20. Nxd4 {[%clk 0:02:06.1]} 20... Qxd4 {[%clk
0:01:48.8]} 21. Qxd4 {[%clk 0:02:03.9]} 21... Bxd4 {[%clk 0:01:49.7]} 22. Bh3
{[%clk 0:01:58.8]} 22... Rb8 {[%clk 0:01:42.6]} 23. e3 {[%clk 0:01:57]} 23...
Bb6 {[%clk 0:01:40.5]} 24. Bf5 {[%clk 0:01:55.1]} 24... Re5 {[%clk 0:01:33.1]}
25. e4 {[%clk 0:01:54.9]} 25... a5 {[%clk 0:01:16.8]} 26. Kg2 {[%clk 0:01:51.3]}
26... Ra8 {[%clk 0:01:14.8]} 27. Rc4 {[%clk 0:01:49.6]} 27... Kg7 {[%clk
0:01:12]} 28. f4 {[%clk 0:01:47.3]} 28... Re7 {[%clk 0:01:11]} 29. Kf3 {[%clk
0:01:45.7]} 29... Kf6 {[%clk 0:01:08.8]} 30. Kg4 {[%clk 0:01:34.7]} 30... gxf4
{[%clk 0:01:06.5]} 31. gxf4 {[%clk 0:01:33.4]} 31... Rg8+ {[%clk 0:01:05.1]} 32.
Kf3 {[%clk 0:01:32.7]} 32... Ree8 {[%clk 0:00:58.2]} 33. Rfc1 {[%clk 0:01:29.3]}
33... Bc5 {[%clk 0:00:43.6]} 34. Rxc5 {[%clk 0:01:22.7]} 34... dxc5 {[%clk
0:00:44.5]} 35. Rxc5 {[%clk 0:01:18.4]} 35... Re7 {[%clk 0:00:44.4]} 36. Bg4
{[%clk 0:01:16.4]} 36... b6 {[%clk 0:00:36.7]} 37. Rc6+ {[%clk 0:01:13.7]} 37...
Kg7 {[%clk 0:00:36.4]} 38. e5 {[%clk 0:01:12.2]} 38... Rd8 {[%clk 0:00:36.4]}
39. Ke4 {[%clk 0:01:09]} 39... Rd6 {[%clk 0:00:36.5]} 40. Rxc7 {[%clk
0:00:55.7]} 40... Rxc7 {[%clk 0:00:22.1]} 41. exd6 {[%clk 0:00:54.8]} 41... Ra7
{[%clk 0:00:20.8]} 42. d7 {[%clk 0:00:51.2]} 42... Ra8 {[%clk 0:00:20.9]} 43.
Ke5 {[%clk 0:00:49.5]} 43... f5 {[%clk 0:00:07.8]} 44. Bxf5 {[%clk 0:00:46.6]}
44... Kf7 {[%clk 0:00:07.3]} 45. Be6+ {[%clk 0:00:45.1]} 45... Ke7 {[%clk
0:00:07.2]} 46. f5 {[%clk 0:00:42.6]} 46... Rh8 {[%clk 0:00:05.4]} 47. f6+
{[%clk 0:00:39.6]} 47... Kd8 {[%clk 0:00:05.7]} 48. h4 {[%clk 0:00:36.3]} 48...
b5 {[%clk 0:00:06]} 49. Kd6 {[%clk 0:00:33.2]} 49... a4 {[%clk 0:00:05.6]} 50.
bxa4 {[%clk 0:00:30.4]} 50... bxa4 {[%clk 0:00:06.5]} 51. a3 {[%clk 0:00:18.9]}
51... h5 {[%clk 0:00:05.7]} 52. Kc5 {[%clk 0:00:13.3]} 52... Rf8 {[%clk
0:00:04.7]} 53. f7 {[%clk 0:00:12]} 53... Ke7 {[%clk 0:00:03.5]} 54. Kd4 {[%clk
0:00:06.7]} 54... Ra8 {[%clk 0:00:02.9]} 55. Ke5 {[%clk 0:00:05.3]} 55... Rh8
{[%clk 0:00:03.4]} 56. Kf5 {[%clk 0:00:02.2]} 56... Kf8 {[%clk 0:00:02.3]} 0-1

[Event "*** Titled Tuesday Blitz"]
[Site "Chess.com"]
[Date "2020.03.03"]
[Round "6"]
[White "ahkashefi2800"]
[Black "Terao90"]
[Result "0-1"]
[WhiteElo "2103"]
[BlackElo "2414"]
[TimeControl "180+1"]
[EndTime "10:04:42 PST"]
[Termination "Terao90 won by resignation"]

1. e4 {[%clk 0:03:00.9]} 1... c5 {[%clk 0:03:00.4]} 2. Nf3 {[%clk 0:03:00.4]}
2... Nc6 {[%clk 0:03:00.9]} 3. d4 {[%clk 0:03:00.8]} 3... cxd4 {[%clk
0:03:01.4]} 4. Nxd4 {[%clk 0:03:01.7]} 4... g6 {[%clk 0:03:01.8]} 5. Nc3 {[%clk
0:02:58.2]} 5... Bg7 {[%clk 0:03:02.2]} 6. Be3 {[%clk 0:02:58.8]} 6... Nf6
{[%clk 0:03:02.3]} 7. Bc4 {[%clk 0:02:56.4]} 7... O-O {[%clk 0:03:01.9]} 8. Bb3
{[%clk 0:02:54.1]} 8... a5 {[%clk 0:02:57.5]} 9. O-O {[%clk 0:02:51.4]} 9... d6
{[%clk 0:02:55.9]} 10. Ndb5 {[%clk 0:02:39]} 10... a4 {[%clk 0:02:05.8]} 11.
Nxa4 {[%clk 0:02:34.8]} 11... Nxe4 {[%clk 0:02:06]} 12. Qe2 {[%clk 0:02:16.7]}
12... Rxa4 {[%clk 0:01:50.4]} 13. Bxa4 {[%clk 0:02:15.6]} 13... Bxb2 {[%clk
0:01:51]} 14. Rab1 {[%clk 0:02:07.1]} 14... Bg7 {[%clk 0:01:50.4]} 15. f3 {[%clk
0:02:03.7]} 15... Nf6 {[%clk 0:01:48.8]} 16. Bb3 {[%clk 0:01:52.4]} 16... Bf5
{[%clk 0:01:44.1]} 17. Rbd1 {[%clk 0:01:44.1]} 17... Qa5 {[%clk 0:01:40.4]} 18.
Nd4 {[%clk 0:01:39.7]} 18... Bd7 {[%clk 0:01:31.1]} 19. Qe1 {[%clk 0:01:32.7]}
19... Qc7 {[%clk 0:01:27.5]} 20. Nb5 {[%clk 0:01:25.5]} 20... Qb8 {[%clk
0:01:26]} 21. Bb6 {[%clk 0:01:20]} 21... Rc8 {[%clk 0:01:21.4]} 22. Nd4 {[%clk
0:01:13.1]} 22... e6 {[%clk 0:00:52]} 23. Nxc6 {[%clk 0:01:07.2]} 23... bxc6
{[%clk 0:00:48.9]} 24. Bd4 {[%clk 0:01:05.5]} 24... c5 {[%clk 0:00:42.3]} 25.
Bxf6 {[%clk 0:01:01.6]} 25... Bxf6 {[%clk 0:00:43.2]} 26. c4 {[%clk 0:00:56.7]}
26... Bc6 {[%clk 0:00:40]} 27. Qd2 {[%clk 0:00:53.2]} 27... Bd4+ {[%clk
0:00:34.4]} 28. Kh1 {[%clk 0:00:52.9]} 28... Kg7 {[%clk 0:00:34.2]} 29. Qf4
{[%clk 0:00:50.8]} 29... Be5 {[%clk 0:00:32.2]} 30. Qh4 {[%clk 0:00:49.7]} 30...
Qc7 {[%clk 0:00:29.7]} 31. Bc2 {[%clk 0:00:48.1]} 31... h6 {[%clk 0:00:28.2]}
32. Be4 {[%clk 0:00:47.6]} 32... Be8 {[%clk 0:00:20.6]} 33. f4 {[%clk 0:00:44]}
33... Bf6 {[%clk 0:00:20.1]} 34. Qf2 {[%clk 0:00:42.2]} 34... Rb8 {[%clk
0:00:20.3]} 35. Qd2 {[%clk 0:00:38.2]} 35... Bd4 {[%clk 0:00:18.9]} 36. Rb1
{[%clk 0:00:37]} 36... Rxb1 {[%clk 0:00:11.9]} 37. Rxb1 {[%clk 0:00:37.9]} 37...
Qa7 {[%clk 0:00:12.2]} 38. Rb7 {[%clk 0:00:25.5]} 38... Qa3 {[%clk 0:00:12.2]}
39. h3 {[%clk 0:00:16.4]} 39... Ba4 {[%clk 0:00:12.1]} 40. Rb1 {[%clk
0:00:11.3]} 40... Be8 {[%clk 0:00:11.5]} 41. Rb3 {[%clk 0:00:08.9]} 41... Qa7
{[%clk 0:00:11.4]} 42. Rg3 {[%clk 0:00:08.2]} 42... Qe7 {[%clk 0:00:11]} 43. f5
{[%clk 0:00:07]} 43... exf5 {[%clk 0:00:10.8]} 44. Bxf5 {[%clk 0:00:07.9]} 44...
Qh4 {[%clk 0:00:10.1]} 45. Rg4 {[%clk 0:00:06.8]} 45... Qf6 {[%clk 0:00:10.3]}
46. Bd3 {[%clk 0:00:06.2]} 46... Bc6 {[%clk 0:00:10.4]} 47. Be4 {[%clk
0:00:06.1]} 47... Bd7 {[%clk 0:00:09.9]} 48. Rf4 {[%clk 0:00:05.3]} 48... Qe7
{[%clk 0:00:09.2]} 49. Bd5 {[%clk 0:00:05.3]} 49... Be8 {[%clk 0:00:09.5]} 50.
Rxd4 {[%clk 0:00:04.3]} 50... cxd4 {[%clk 0:00:10.4]} 51. Qxd4+ {[%clk
0:00:05.2]} 51... Kh7 {[%clk 0:00:08.9]} 52. a4 {[%clk 0:00:05.6]} 52... Bxa4
{[%clk 0:00:08.2]} 53. Kh2 {[%clk 0:00:05.3]} 53... Be8 {[%clk 0:00:06.1]} 54.
Qf4 {[%clk 0:00:05.5]} 54... Kg8 {[%clk 0:00:05.4]} 55. Qg3 {[%clk 0:00:04.7]}
55... Kg7 {[%clk 0:00:05.4]} 56. Qc3+ {[%clk 0:00:04.5]} 56... f6 {[%clk
0:00:05.9]} 57. Qd4 {[%clk 0:00:04.4]} 57... g5 {[%clk 0:00:06.4]} 58. Kg3
{[%clk 0:00:04.8]} 58... Bf7 {[%clk 0:00:06.8]} 59. Kf3 {[%clk 0:00:04.7]} 59...
Qe5 {[%clk 0:00:05.9]} 60. Qxe5 {[%clk 0:00:04.4]} 60... fxe5 {[%clk 0:00:05.9]}
61. g4 {[%clk 0:00:04.7]} 61... Bxd5+ {[%clk 0:00:05.5]} 62. cxd5 {[%clk
0:00:05.6]} 62... Kf7 {[%clk 0:00:05.9]} 63. Ke4 {[%clk 0:00:05.5]} 63... Ke8
{[%clk 0:00:06.5]} 64. Kf5 {[%clk 0:00:05.5]} 64... Kd7 {[%clk 0:00:07]} 65. Ke4
{[%clk 0:00:05]} 65... Kc7 {[%clk 0:00:06.9]} 66. Kf5 {[%clk 0:00:05]} 66... Kb6
{[%clk 0:00:07.4]} 67. Kg6 {[%clk 0:00:05]} 67... e4 {[%clk 0:00:07]} 68. Kxh6
{[%clk 0:00:05.9]} 68... e3 {[%clk 0:00:07.9]} 69. Kxg5 {[%clk 0:00:06.7]} 69...
e2 {[%clk 0:00:08.8]} 70. h4 {[%clk 0:00:07.6]} 70... e1=Q {[%clk 0:00:09.6]}
71. h5 {[%clk 0:00:08.5]} 71... Qe5+ {[%clk 0:00:09.8]} 72. Kg6 {[%clk
0:00:09.1]} 72... Qxd5 {[%clk 0:00:10.1]} 73. h6 {[%clk 0:00:09.8]} 73... Qe6+
{[%clk 0:00:10.3]} 74. Kh5 {[%clk 0:00:10.2]} 74... Qf7+ {[%clk 0:00:10]} 75.
Kg5 {[%clk 0:00:10.3]} 75... Qg8+ {[%clk 0:00:09.6]} 76. Kh5 {[%clk 0:00:10.1]}
76... Qf7+ {[%clk 0:00:07.1]} 77. Kh4 {[%clk 0:00:10.2]} 77... Qg6 {[%clk
0:00:07.2]} 78. g5 {[%clk 0:00:10.7]} 78... d5 {[%clk 0:00:07.7]} 0-1

[Event "*** Titled Tuesday Blitz"]
[Site "Chess.com"]
[Date "2020.03.03"]
[Round "6"]
[White "chris_rock_comic"]
[Black "JSPrepz"]
[Result "1-0"]
[WhiteElo "2892"]
[BlackElo "2747"]
[TimeControl "180+1"]
[EndTime "10:05:12 PST"]
[Termination "chris_rock_comic won by checkmate"]

1. d4 {[%clk 0:02:59.8]} 1... Nf6 {[%clk 0:02:56.6]} 2. Bg5 {[%clk 0:02:59.2]}
2... d5 {[%clk 0:02:52.9]} 3. e3 {[%clk 0:02:58.4]} 3... e6 {[%clk 0:02:51.2]}
4. Nd2 {[%clk 0:02:55.8]} 4... Be7 {[%clk 0:02:51.3]} 5. Bd3 {[%clk 0:02:54.7]}
5... O-O {[%clk 0:02:51.5]} 6. f4 {[%clk 0:02:51]} 6... c5 {[%clk 0:02:51.8]} 7.
c3 {[%clk 0:02:50.8]} 7... b6 {[%clk 0:02:52.3]} 8. Qe2 {[%clk 0:02:50.4]} 8...
a5 {[%clk 0:02:52.2]} 9. Ngf3 {[%clk 0:02:50.3]} 9... Ba6 {[%clk 0:02:50]} 10.
Ne5 {[%clk 0:02:47.3]} 10... Bxd3 {[%clk 0:02:49.4]} 11. Qxd3 {[%clk 0:02:47.1]}
11... Ne8 {[%clk 0:02:46.9]} 12. Bxe7 {[%clk 0:02:44.2]} 12... Qxe7 {[%clk
0:02:47.8]} 13. O-O {[%clk 0:02:43.7]} 13... Nd6 {[%clk 0:02:47.9]} 14. dxc5
{[%clk 0:02:33.6]} 14... bxc5 {[%clk 0:02:47.2]} 15. c4 {[%clk 0:02:33.2]} 15...
Na6 {[%clk 0:02:38.7]} 16. Nc6 {[%clk 0:02:04.1]} 16... Qb7 {[%clk 0:02:05.2]}
17. cxd5 {[%clk 0:01:58.2]} 17... exd5 {[%clk 0:02:06.1]} 18. Qxd5 {[%clk
0:01:52.9]} 18... Rad8 {[%clk 0:01:45]} 19. Qf3 {[%clk 0:01:47.7]} 19... Rc8
{[%clk 0:01:33.7]} 20. Nxa5 {[%clk 0:01:43.3]} 20... Qb4 {[%clk 0:01:26.4]} 21.
Nab3 {[%clk 0:01:23.5]} 21... c4 {[%clk 0:01:26.4]} 22. a3 {[%clk 0:01:23.2]}
22... Qb6 {[%clk 0:01:23.7]} 23. Nd4 {[%clk 0:01:22.7]} 23... Qxb2 {[%clk
0:01:23.9]} 24. Ne4 {[%clk 0:01:15.8]} 24... Nxe4 {[%clk 0:01:19.7]} 25. Qxe4
{[%clk 0:01:15.8]} 25... Rfe8 {[%clk 0:01:18.6]} 26. Qc2 {[%clk 0:01:12.5]}
26... Qb6 {[%clk 0:01:14.8]} 27. Qc3 {[%clk 0:01:10.8]} 27... Qc5 {[%clk
0:01:03.9]} 28. Rfc1 {[%clk 0:01:04.5]} 28... Qd5 {[%clk 0:00:57.9]} 29. Rab1
{[%clk 0:00:59.4]} 29... h6 {[%clk 0:00:52.5]} 30. Rb5 {[%clk 0:00:56.6]} 30...
Qd7 {[%clk 0:00:43.6]} 31. Nf5 {[%clk 0:00:52.5]} 31... f6 {[%clk 0:00:43.9]}
32. Rcb1 {[%clk 0:00:43.2]} 32... Nc7 {[%clk 0:00:33.7]} 33. Qxc4+ {[%clk
0:00:39.8]} 33... Kh8 {[%clk 0:00:31.9]} 34. Rc5 {[%clk 0:00:38.5]} 34... Ne6
{[%clk 0:00:25.2]} 35. Rxc8 {[%clk 0:00:35.8]} 35... Rxc8 {[%clk 0:00:26.1]} 36.
Qb4 {[%clk 0:00:14.2]} 36... Rc2 {[%clk 0:00:25.9]} 37. Qe4 {[%clk 0:00:12.1]}
37... Qd2 {[%clk 0:00:13.9]} 38. Rb8+ {[%clk 0:00:10.7]} 38... Nd8 {[%clk
0:00:14.3]} 39. Rxd8+ {[%clk 0:00:08.5]} 39... Qxd8 {[%clk 0:00:13.1]} 40. Qxc2
{[%clk 0:00:08.4]} 40... Qa5 {[%clk 0:00:13.4]} 41. Kf2 {[%clk 0:00:05.7]} 41...
Qxa3 {[%clk 0:00:13.4]} 42. Nd4 {[%clk 0:00:05.6]} 42... Qa1 {[%clk 0:00:13.1]}
43. g4 {[%clk 0:00:05]} 43... Qh1 {[%clk 0:00:13.2]} 44. Nf3 {[%clk 0:00:05.1]}
44... Qa1 {[%clk 0:00:13.2]} 45. Qc8+ {[%clk 0:00:04.8]} 45... Kh7 {[%clk
0:00:12.8]} 46. Qf5+ {[%clk 0:00:05.7]} 46... Kh8 {[%clk 0:00:13.4]} 47. Qc2
{[%clk 0:00:06.3]} 47... Qa5 {[%clk 0:00:12.5]} 48. Kg3 {[%clk 0:00:06.4]} 48...
Qa1 {[%clk 0:00:12.2]} 49. h4 {[%clk 0:00:06.3]} 49... Qh1 {[%clk 0:00:11.1]}
50. h5 {[%clk 0:00:06.3]} 50... Qf1 {[%clk 0:00:10.7]} 51. Qc8+ {[%clk
0:00:05.7]} 51... Kh7 {[%clk 0:00:10.8]} 52. Qf5+ {[%clk 0:00:05.9]} 52... Kg8
{[%clk 0:00:11.3]} 53. Qc2 {[%clk 0:00:06.3]} 53... Kh8 {[%clk 0:00:10.9]} 54.
Qf2 {[%clk 0:00:06.1]} 54... Qh1 {[%clk 0:00:10.5]} 55. Qe1 {[%clk 0:00:05.8]}
55... Qxe1+ {[%clk 0:00:06.5]} 56. Nxe1 {[%clk 0:00:05.6]} 56... Kg8 {[%clk
0:00:07.4]} 57. Nf3 {[%clk 0:00:05.3]} 57... Kf7 {[%clk 0:00:08.3]} 58. Nh4
{[%clk 0:00:05.8]} 58... Ke6 {[%clk 0:00:09.2]} 59. Nf5 {[%clk 0:00:05.5]} 59...
Kf7 {[%clk 0:00:10.1]} 60. Kf3 {[%clk 0:00:05.8]} 60... Kg8 {[%clk 0:00:08.4]}
61. Ke4 {[%clk 0:00:05.4]} 61... Kf7 {[%clk 0:00:09]} 62. Kd5 {[%clk 0:00:05.5]}
62... g6 {[%clk 0:00:09.6]} 63. Nxh6+ {[%clk 0:00:05.3]} 63... Kg7 {[%clk
0:00:10]} 64. hxg6 {[%clk 0:00:05.4]} 64... Kxh6 {[%clk 0:00:10.4]} 65. f5
{[%clk 0:00:05.3]} 65... Kg5 {[%clk 0:00:11.1]} 66. Ke6 {[%clk 0:00:06.2]} 66...
Kxg4 {[%clk 0:00:12]} 67. g7 {[%clk 0:00:06.2]} 67... Kf3 {[%clk 0:00:12.9]} 68.
g8=Q {[%clk 0:00:07.1]} 68... Ke4 {[%clk 0:00:13.8]} 69. Kxf6 {[%clk 0:00:07.6]}
69... Kd3 {[%clk 0:00:14.7]} 70. Ke5 {[%clk 0:00:07.9]} 70... Kxe3 {[%clk
0:00:15]} 71. f6 {[%clk 0:00:08.8]} 71... Kd3 {[%clk 0:00:15.9]} 72. f7 {[%clk
0:00:09.7]} 72... Kc4 {[%clk 0:00:16.8]} 73. f8=Q+ {[%clk 0:00:09.8]} 73... Kc3
{[%clk 0:00:16.6]} 74. Qa3+ {[%clk 0:00:08.6]} 74... Kd2 {[%clk 0:00:17.5]} 75.
Qg2+ {[%clk 0:00:07.8]} 75... Kd1 {[%clk 0:00:17.9]} 76. Qa1# {[%clk 0:00:07.4]}
1-0